bitfinex/quotes_ETHUSD_20260119
["timestamp","ask_amount","ask_price","bid_price","bid_amount"]
[1768800093479,8.49754172,3200.2,3199.7,0.515]
[1768800093710,8.49754172,3200.2,3199.7,8.31802102]
[1768800093711,0.07398026,3200.2,3199.7,8.31802102]
[1768800093912,0.07398026,3200.2,3199.8,7.80302102]
[1768800094123,8.42356146,3200.5,3199.9,7.80850706]
[1768800094281,8.42356146,3200.8,3199.9,7.80850706]
[1768800094474,8.42356146,3200.9,3199.9,7.80850706]
[1768800096176,8.42356146,3200.9,3200.1,7.81864939]
[1768800096373,8.42356146,3200.9,3200.1,8.33364939]
[1768800096573,11.54770335,3200.9,3200.1,8.33364939]
[1768800097608,0.001,3201.0,3200.1,8.33364939]
[1768800098408,0.001,3201.0,3200.3,7.82537758]
[1768800099484,0.001,3200.6,3200.3,7.82537758]
[1768800099684,0.001,3201.0,3200.3,7.83619774]
[1768800100423,0.001,3201.0,3200.5,7.83929991]
[1768800100603,0.001,3201.0,3200.7,7.83929991]
[1768800100906,3.12334543,3201.7,3200.4,6.24921884]
[1768800100907,8.54970938,3201.7,3200.4,6.24921884]
[1768800101209,8.54970938,3201.5,3200.4,3.12460942]
[1768800101411,8.54970938,3201.5,3200.5,0.515]
[1768800101807,8.54970938,3201.5,3200.4,3.12460942]
[1768800102017,8.54970938,3201.5,3200.4,3.63960942]
[1768800102214,10.10815259,3201.5,3200.4,3.63960942]
[1768800102519,8.54970938,3201.4,3200.5,0.515]
[1768800102683,8.54970938,3201.4,3200.5,8.35828266]
[1768800102884,8.54970938,3201.4,3200.4,3.12460942]
[1768800103083,8.54970938,3201.4,3200.5,0.515]
[1768800104112,8.54970938,3201.4,3200.5,8.36394189]
[1768800104813,8.54970938,3201.3,3200.5,11.48839741]
[1768800104986,8.54970938,3201.3,3200.6,7.84894189]
[1768800105495,8.54970938,3201.6,3200.6,7.84894189]
[1768800105686,8.54970938,3201.6,3200.5,3.63945552]
[1768800106012,8.54970938,3201.6,3200.5,11.49112099]
[1768800106217,8.54970938,3201.4,3200.5,0.515]
[1768800106516,8.54970938,3201.4,3200.5,3.63946674]
[1768800106815,3.12364257,3201.4,3200.5,11.49378304]
[1768800107120,8.54970938,3201.3,3200.5,11.49378304]
[1768800108310,8.54970938,3201.3,3200.6,8.37441322]
[1768800108618,8.54970938,3201.3,3200.6,0.515]
[1768800109006,8.54970938,3201.3,3200.6,8.37686106]
[1768800109617,8.54970938,3201.3,3200.6,11.50126047]
[1768800109920,8.54970938,3201.3,3200.7,7.86186106]
[1768800111006,0.001,3201.0,3200.7,10.98615544]
[1768800111326,0.001,3201.0,3200.8,7.86655984]
[1768800112725,0.001,3201.0,3200.8,7.87525086]
[1768800112922,7.82289943,3201.6,3200.8,7.87425086]
[1768800113222,7.82289943,3201.6,3201.0,7.87636615]
[1768800113920,7.82289943,3201.6,3201.0,8.39136615]
[1768800114327,8.33989943,3201.8,3201.0,8.39136615]
[1768800114527,8.33989943,3201.8,3201.1,7.87843698]
[1768800114708,0.001,3201.8,3201.1,7.87843698]
[1768800115038,0.001,3201.8,3201.2,6.24765712]
[1768800115346,0.001,3201.8,3201.3,7.8804296]
[1768800115502,0.001,3201.8,3201.2,6.24765712]
[1768800115503,0.001,3201.8,3201.4,8.3954296]
[1768800117108,7.82289943,3201.7,3201.4,3.63861911]
[1768800117700,0.001,3201.8,3201.4,3.63861911]
[1768800118740,0.001,3201.8,3201.4,0.515]
[1768800120264,7.82389943,3201.8,3201.4,8.40452541]
[1768800120563,7.82389943,3201.8,3201.4,0.515]
[1768800121064,7.82389943,3201.8,3201.4,3.63862742]
[1768800121363,0.001,3201.8,3201.5,7.89117509]
[1768800123042,0.001,3201.5,3201.4,0.515]
[1768800123532,0.001,3201.5,3201.3,7.89430832]
[1768800123732,0.001,3201.5,3201.4,8.40930832]
[1768800124124,0.001,3201.5,3201.4,0.515]
[1768800124328,7.82289943,3201.4,3201.0,7.89579334]
[1768800124529,7.82289943,3201.4,3201.1,0.515]
[1768800125031,0.001,3201.5,3201.1,0.515]
[1768800125436,7.82389943,3201.5,3201.1,0.515]
[1768800126468,7.82389943,3201.5,3200.5,0.35]
[1768800126469,7.82389943,3201.5,3200.1,7.89860375]
[1768800126633,7.82389943,3201.5,3200.9,3.12408449]
[1768800127138,7.82389943,3201.5,3201.0,11.02394351]
[1768800127339,7.82389943,3201.5,3201.0,7.89993055]
[1768800127844,0.001,3201.5,3201.1,7.89993055]
[1768800128179,0.001,3201.5,3201.0,3.12401755]
[1768800128180,7.82289943,3201.4,3200.8,11.5403848]
[1768800128532,7.82289943,3201.4,3200.9,7.901206]
[1768800129754,7.82289943,3201.4,3200.9,11.02528274]
[1768800130133,0.001,3201.8,3201.1,7.90260557]
[1768800130347,7.82289943,3201.7,3201.1,0.515]
[1768800131151,7.82289943,3201.7,3200.8,11.02678024]
[1768800131464,8.91761539,3201.7,3200.9,0.515]
[1768800131658,8.91761539,3201.7,3200.9,3.63911742]
[1768800131973,7.82289943,3201.6,3200.8,7.90260557]
[1768800132168,7.82289943,3201.6,3200.9,0.515]
[1768800132337,9.33943406,3201.6,3200.9,0.515]
[1768800132539,9.33943406,3201.6,3200.6,11.02921135]
[1768800132742,9.33943406,3201.6,3200.7,0.515]
[1768800132965,9.33943406,3201.6,3200.6,11.02921135]
[1768800133135,9.33943406,3201.6,3200.6,11.54421135]
[1768800133337,7.82289943,3201.4,3200.6,11.54421135]
[1768800133833,7.82289943,3201.4,3200.7,3.12430495]
[1768800134665,7.82389943,3201.4,3200.7,3.12430495]
[1768800135367,7.82389943,3201.4,3200.7,11.03207461]
[1768800136140,7.82389943,3201.4,3200.8,7.9086513]
[1768800136464,0.001,3201.8,3201.2,7.9086513]
[1768800136668,0.001,3201.8,3201.4,7.9086513]
[1768800136855,0.001,3201.8,3201.5,7.9086513]
[1768800138061,0.001,3201.8,3201.4,14.15754166]
[1768800138272,0.001,3201.8,3201.4,11.03390825]
[1768800138480,0.001,3201.8,3201.5,7.91029614]
[1768800139042,3.12258091,3202.5,3201.7,7.91004329]
[1768800139276,3.12258091,3202.5,3201.7,0.515]
[1768800139277,7.82289943,3202.4,3201.7,0.515]
[1768800140747,7.82289943,3202.9,3202.0,7.9107641]
[1768800140953,7.82289943,3202.9,3202.2,7.9107641]
[1768800141480,7.82289943,3203.1,3202.3,7.91142457]
[1768800142946,7.82289943,3203.1,3202.5,7.91654142]
[1768800143147,7.82289943,3203.1,3202.6,3.12246299]
[1768800143455,11.4384877,3203.4,3202.6,7.91706591]
[1768800143764,8.31680449,3203.3,3202.6,7.91706591]
[1768800143971,8.31680449,3203.1,3200.6,8.30752222]
[1768800144171,8.31680449,3201.5,3200.3,8.30752222]
[1768800144357,8.72579425,3201.4,3200.4,8.30752222]
[1768800144562,9.25416086,3201.4,3200.5,0.515]
[1768800145069,8.31680449,3201.4,3200.5,0.515]
[1768800145246,8.31680449,3201.4,3200.6,3.12441417]
[1768800145873,3.12364056,3201.4,3200.6,3.12441417]
[1768800146058,8.31680449,3201.3,3200.6,3.12441417]
[1768800147894,8.31680449,3201.3,3200.5,3.63947518]
[1768800148802,8.31680449,3201.3,3200.5,11.9469974]
[1768800148994,11.82388975,3202.6,3200.6,8.30752222]
[1768800148995,8.31680449,3202.4,3200.6,8.30752222]
[1768800149288,8.31680449,3202.0,3200.6,8.30752222]
[1768800149503,0.80601774,3202.3,3200.6,8.30752222]
[1768800149504,8.31680449,3201.8,3200.6,8.30752222]
[1768800149987,8.31680449,3201.8,3200.8,8.30752222]
[1768800150193,8.31680449,3201.8,3201.0,8.30752222]
[1768800150761,11.43988306,3202.0,3201.0,8.30752222]
[1768800151191,8.31680449,3202.0,3201.0,8.30752222]
[1768800151393,3.12314563,3201.9,3201.2,8.30752222]
[1768800151590,3.12314563,3201.9,3201.3,0.515]
[1768800151795,8.31680449,3201.9,3201.3,0.515]
[1768800152899,8.31680449,3201.9,3201.3,3.63869022]
[1768800155597,8.31680449,3201.9,3201.3,6.7624212]
[1768800155795,8.31680449,3201.9,3201.3,3.63869022]
[1768800156603,8.31680449,3201.8,3200.9,0.515]
[1768800156907,0.03167975,3201.3,3200.9,0.515]
[1768800158877,8.85851155,3201.3,3200.9,0.515]
[1768800159076,0.03167975,3201.3,3200.9,9.05433799]
[1768800159288,0.03167975,3201.3,3200.9,12.17842932]
[1768800159781,0.03167975,3201.3,3201.0,8.53933799]
[1768800159986,8.8268318,3201.8,3201.0,8.53933799]
[1768800160385,8.8268318,3201.7,3201.0,8.53933799]
[1768800161092,8.8268318,3201.7,3201.1,3.12392615]
[1768800161480,8.8268318,3201.7,3201.1,11.66326414]
[1768800162569,8.8268318,3201.7,3201.1,3.12392615]
[1768800162771,12.46597816,3201.9,3201.2,8.53933799]
[1768800162970,11.94997816,3201.9,3201.2,9.05433799]
[1768800163171,8.8268318,3201.8,3201.2,9.05433799]
[1768800163779,8.8268318,3201.8,3201.2,12.17815566]
[1768800164895,3.1230127,3202.1,3201.3,8.53933799]
[1768800164896,8.8268318,3202.0,3201.3,8.53933799]
[1768800165097,8.8268318,3202.0,3201.3,11.66306225]
[1768800165402,8.8268318,3202.0,3201.3,8.53933799]
[1768800165403,11.94988984,3202.0,3201.3,8.53933799]
[1768800165607,8.8268318,3201.9,3201.3,8.53933799]
[1768800165781,8.8268318,3201.9,3201.3,11.66306126]
[1768800165982,8.8268318,3201.9,3201.3,8.53933799]
[1768800167013,8.8268318,3201.9,3201.3,11.66304902]
[1768800167309,8.8268318,3201.9,3201.3,8.53933799]
[1768800167507,8.8268318,3201.9,3201.3,11.66298316]
[1768800168808,8.8268318,3201.9,3201.3,3.12364517]
[1768800168984,8.8268318,3201.9,3201.4,8.53933799]
[1768800172024,8.8268318,3202.0,3201.4,8.53933799]
[1768800172611,8.8268318,3202.0,3201.5,8.62119101]
[1768800172813,9.5073533,3202.2,3201.6,8.62119101]
[1768800174591,9.5073533,3202.2,3201.5,3.12350051]
[1768800176917,9.5073533,3202.2,3201.5,8.62119101]
[1768800177733,8.9913533,3202.2,3201.5,8.62119101]
[1768800180238,8.9913533,3202.2,3201.6,3.12343828]
[1768800180539,8.9913533,3202.2,3201.6,11.74462929]
[1768800181814,8.9913533,3202.2,3201.6,14.86806757]
[1768800182016,0.516,3202.5,3201.7,8.62119101]
[1768800182333,0.29058548,3202.4,3201.9,8.62119101]
[1768800182510,8.9913533,3202.6,3201.9,8.62119101]
[1768800182711,8.9913533,3202.4,3201.6,3.12341938]
[1768800182920,8.9913533,3202.4,3201.6,3.63841938]
[1768800183342,8.9913533,3202.4,3201.6,0.515]
[1768800183836,8.9913533,3202.2,3201.6,0.515]
[1768800185310,8.9913533,3202.2,3201.6,3.6384376]
[1768800186445,8.9913533,3202.2,3201.6,12.25962861]
[1768800187344,8.9913533,3202.2,3201.7,8.62119101]
[1768800187834,8.9913533,3202.2,3201.7,11.74447145]
[1768800188041,8.9913533,3202.2,3201.7,8.62119101]
[1768800188723,8.9913533,3202.2,3201.6,0.515]
[1768800189228,8.9913533,3202.1,3201.5,8.62119101]
[1768800189410,8.9913533,3202.1,3201.6,0.515]
[1768800190048,3.63930371,3202.8,3201.6,9.13619101]
[1768800190049,3.12281596,3202.3,3201.6,9.13619101]
[1768800190226,0.2906063,3202.2,3201.7,8.62119101]
[1768800190538,0.2906063,3202.2,3201.6,0.515]
[1768800190539,8.9913533,3202.2,3201.6,0.515]
[1768800192311,3.12286671,3202.2,3201.6,0.515]
[1768800192512,8.9913533,3202.1,3201.6,0.515]
[1768800192840,8.9913533,3202.1,3201.5,11.74472532]
[1768800193010,8.9913533,3202.1,3201.6,0.515]
[1768800194213,8.9923533,3201.9,3201.6,0.515]
[1768800194920,8.9923533,3201.9,3201.5,11.74471993]
[1768800195161,8.9923533,3201.9,3201.5,12.25971993]
[1768800195460,0.001,3201.9,3201.5,12.25971993]
[1768800195765,0.001,3201.9,3201.6,3.12342189]
[1768800196141,0.001,3201.9,3201.6,11.7446129]
[1768800196950,0.001,3201.9,3201.6,12.2596129]
[1768800197461,0.001,3201.9,3201.6,9.13619101]
[1768800197667,0.001,3201.9,3201.6,12.25958962]
[1768800197963,0.001,3201.9,3201.7,8.62119101]
[1768800201027,0.001,3201.9,3201.8,8.62119101]
[1768800212089,8.99032461,3202.6,3201.9,9.57859085]
[1768800212272,8.99032461,3202.4,3201.7,12.70192949]
[1768800212472,8.99032461,3202.2,3201.7,12.70192949]
[1768800212672,8.99032461,3202.2,3201.8,9.57859085]
[1768800213286,8.99032461,3202.4,3201.8,9.57859085]
[1768800213485,0.29094186,3202.3,3201.8,9.57859085]
[1768800213671,0.29094186,3202.2,3201.8,9.57859085]
[1768800213874,8.99032461,3202.3,3201.8,9.57859085]
[1768800214088,0.29094222,3202.2,3201.8,9.57859085]
[1768800214287,8.99032461,3202.3,3201.8,9.57859085]
[1768800214577,9.28125908,3202.2,3201.8,9.57859085]
[1768800214778,8.99032461,3202.2,3201.8,9.57859085]
[1768800215658,8.99032461,3202.2,3201.6,10.09359085]
[1768800216980,8.99032461,3202.2,3201.6,13.21700203]
[1768800217387,0.001,3202.0,3201.6,10.09359085]
[1768800217681,8.99132461,3202.0,3201.5,0.515]
[1768800217861,8.99132461,3202.0,3201.5,3.12351896]
[1768800218065,8.99032461,3201.8,3201.2,0.002]
[1768800219571,9.0991307,3201.7,3201.2,0.002]
[1768800221574,1.41613246,3202.0,3201.2,0.002]
[1768800221575,9.0991307,3201.6,3201.2,0.002]
[1768800227301,9.0991307,3201.6,3201.2,9.61143351]
[1768800227704,9.0991307,3201.9,3201.2,9.61143351]
[1768800228686,9.0991307,3201.9,3201.3,12.73316449]
[1768800229001,9.1001307,3201.9,3201.3,12.73316449]
[1768800231013,9.1001307,3201.9,3201.4,9.60943351]
[1768800232910,9.1001307,3201.9,3201.5,9.96262183]
[1768800234684,9.1001307,3201.9,3201.3,13.08631915]
[1768800235406,9.1001307,3201.9,3201.3,9.96262183]
[1768800236616,12.2232843,3201.9,3201.3,9.96262183]
[1768800236913,9.2420429,3201.8,3201.3,9.96262183]
[1768800237115,9.2420429,3201.8,3201.3,3.12370893]
[1768800237520,9.2420429,3201.8,3201.3,13.08633076]
[1768800237689,9.2420429,3201.8,3201.4,0.515]
[1768800238011,9.2420429,3201.8,3201.4,10.47762183]
[1768800240435,0.001,3201.6,3201.5,9.96262183]
[1768800242122,0.001,3201.6,3201.4,0.515]
[1768800244147,0.001,3201.6,3198.0,9.96262183]
[1768800244148,9.2420429,3201.2,3198.0,9.96262183]
[1768800244294,9.2420429,3199.1,3197.9,9.96262183]
[1768800244494,9.2420429,3198.7,3198.1,9.96262183]
[1768800244740,9.2420429,3198.9,3198.2,4.0]
[1768800244902,9.2420429,3199.1,3198.3,9.96262183]
[1768800245228,0.516,3199.0,3198.3,9.96262183]
[1768800245389,0.516,3198.9,3198.3,9.96262183]
[1768800246219,0.516,3198.9,3198.4,9.96262183]
[1768800247228,9.7580429,3198.9,3198.1,9.96262183]
[1768800247599,12.8841404,3198.9,3198.1,9.96262183]
[1768800248031,9.7580429,3198.9,3198.2,9.96262183]
[1768800249828,12.88414346,3198.9,3198.2,9.96262183]
[1768800250125,9.7580429,3198.9,3198.2,9.96262183]
[1768800250329,9.2420429,3198.8,3198.2,9.96262183]
[1768800250903,9.2420429,3199.0,3198.2,9.96262183]
[1768800251096,9.2420429,3199.3,3198.3,9.96262183]
[1768800251301,0.516,3199.2,3198.3,9.96262183]
[1768800251925,9.2420429,3199.3,3198.5,9.96262183]
[1768800252250,9.7580429,3199.2,3198.5,9.96262183]
[1768800252938,12.36783758,3199.2,3198.5,9.96262183]
[1768800253238,12.8838267,3199.2,3198.5,9.96262183]
[1768800253427,9.7580429,3199.2,3198.5,13.08907513]
[1768800253608,9.7580429,3199.2,3198.6,9.96262183]
[1768800254027,12.8838269,3199.2,3198.6,9.96262183]
[1768800254239,9.7580429,3199.2,3198.6,9.96262183]
[1768800254428,9.2420429,3199.2,3198.6,9.96262183]
[1768800255435,9.2420429,3199.1,3198.4,13.09116805]
[1768800255623,9.2420429,3199.1,3198.5,9.96262183]
[1768800256138,12.8838206,3199.3,3198.5,9.96262183]
[1768800256542,12.88376741,3199.3,3198.7,9.96262183]
[1768800256836,3.8,3199.2,3198.7,9.96262183]
[1768800257013,3.76360692,3199.2,3198.6,9.96262183]
[1768800257205,9.2420429,3199.1,3198.6,9.96262183]
[1768800257405,9.2420429,3199.1,3198.6,13.08898961]
[1768800258237,3.76360692,3199.2,3198.7,9.96262183]
[1768800259037,9.2420429,3198.9,3198.0,9.96462183]
[1768800259211,9.2420429,3198.9,3198.0,0.002]
[1768800259411,9.2420429,3198.9,3198.0,9.96462183]
[1768800261344,9.2420429,3198.9,3198.2,9.96262183]
[1768800261925,9.7580429,3199.2,3198.2,9.96262183]
[1768800262841,9.2420429,3199.2,3198.4,12.24815382]
[1768800263541,9.2420429,3199.2,3198.5,15.37461935]
[1768800264112,11.50559724,3199.4,3198.6,12.24815382]
[1768800264342,0.001,3198.9,3198.6,12.24815382]
[1768800264531,0.001,3198.9,3198.5,3.12646553]
[1768800264938,11.50659724,3198.9,3198.4,15.37670774]
[1768800266455,0.001,3198.9,3198.4,6.2551172]
[1768800266618,0.001,3198.9,3198.5,12.24815382]
[1768800268745,0.001,3198.9,3198.6,15.3745216]
[1768800269044,0.001,3198.9,3198.7,12.76415382]
[1768800271761,0.001,3198.9,3198.8,3.12617231]
[1768800271932,0.001,3198.9,3198.7,15.89038832]
[1768800272460,0.001,3198.9,3198.8,12.24815382]
[1768800273857,0.001,3198.9,3198.8,15.37432613]
[1768800276267,0.001,3198.9,3198.8,12.24815382]
[1768800277646,0.001,3198.9,3198.8,15.37432613]
[1768800278871,3.29,3201.0,3199.4,12.75675479]
[1768800279051,4.18634065,3200.9,3200.2,12.75675479]
[1768800279251,2.48854642,3200.8,3200.3,0.516]
[1768800279863,2.48854642,3200.8,3200.3,13.27275479]
[1768800280435,2.48854642,3200.8,3200.1,12.75675479]
[1768800280655,2.48854642,3200.8,3200.2,0.516]
[1768800281368,2.48854642,3200.8,3200.2,3.64079312]
[1768800281738,2.48854642,3200.8,3200.2,0.516]
[1768800281960,0.001,3201.6,3200.2,0.516]
[1768800281961,1.10917214,3201.5,3200.6,12.75675479]
[1768800282274,1.10917214,3201.5,3200.5,7.03998741]
[1768800282275,1.10917214,3201.5,3200.8,12.75675479]
[1768800282667,1.10917214,3201.5,3200.8,15.88093903]
[1768800283073,1.10917214,3201.5,3200.8,12.75675479]
[1768800284144,1.10917214,3201.5,3200.8,15.88096428]
[1768800285244,1.53252378,3201.5,3200.8,15.88096428]
[1768800285444,1.10917214,3201.5,3200.8,15.88096428]
[1768800286176,3.76360692,3201.4,3200.8,15.88096428]
[1768800286474,6.26622859,3201.4,3200.8,15.88096428]
[1768800287555,3.76360692,3201.4,3200.8,15.88096428]
[1768800287740,0.001,3201.2,3200.9,12.75675479]
[1768800287959,0.001,3201.6,3200.9,12.75675479]
[1768800288363,0.001,3201.6,3200.9,13.71023967]
[1768800288563,0.001,3201.6,3201.1,12.75675479]
[1768800288767,0.001,3201.9,3201.3,12.75675479]
[1768800290773,0.001,3201.9,3201.5,12.75675479]
[1768800290993,0.001,3201.9,3201.7,12.75675479]
[1768800291178,3.12330548,3202.8,3201.7,12.75675479]
[1768800291179,0.001,3202.8,3201.7,12.75675479]
[1768800292784,0.001,3202.8,3201.9,12.90871261]
[1768800292985,0.001,3202.8,3202.1,12.90871261]
[1768800294800,0.001,3202.8,3202.3,12.90871261]
[1768800295102,0.001,3202.8,3202.4,13.42371261]
[1768800296260,0.001,3202.8,3202.4,12.90871261]
[1768800296460,0.001,3202.8,3202.5,0.515]
[1768800297856,0.001,3202.8,3201.6,3.12339133]
[1768800298061,2.50560167,3202.8,3201.7,13.42371261]
[1768800298983,2.50560167,3202.8,3202.3,12.90871261]
[1768800299190,2.50560167,3202.8,3202.4,0.515]
[1768800299566,2.50560167,3202.8,3202.3,5.32971261]
[1768800299786,2.50560167,3202.8,3200.2,1.59626666]
[1768800299787,12.09529537,3201.6,3198.4,0.002]
[1768800299973,7.130642,3201.7,3198.4,0.002]
[1768800299974,1.76006257,3199.8,3199.4,0.00871897]
[1768800300183,12.09529537,3200.2,3199.5,0.515]
[1768800300391,12.09529537,3200.8,3199.6,3.40734802]
[1768800300704,12.09529537,3200.8,3199.6,0.515]
[1768800301026,12.09529537,3200.8,3199.6,13.42371261]
[1768800301179,18.34392847,3200.7,3199.6,13.42371261]
[1768800302717,12.09529537,3200.6,3199.6,13.42371261]
[1768800303275,6.24902358,3200.5,3199.6,13.42371261]
[1768800303473,18.34431895,3200.5,3199.6,13.42371261]
[1768800305688,12.09529537,3200.4,3199.6,0.515]
[1768800306025,6.2486331,3200.7,3199.6,13.42371261]
[1768800306212,7.30688102,3200.7,3199.6,13.42371261]
[1768800306785,19.40217639,3200.7,3199.6,13.42371261]
[1768800309494,12.09529537,3200.6,3199.6,13.42371261]
[1768800309696,12.09529537,3200.6,3199.7,0.515]
[1768800310331,12.09529537,3200.4,3199.7,0.515]
[1768800312034,12.09529537,3200.4,3199.9,0.002]
[1768800312432,3.12470705,3200.3,3199.9,0.002]
[1768800312633,15.22094366,3200.4,3199.9,0.002]
[1768800314238,15.22094366,3200.4,3200.0,0.515]
[1768800314405,15.22094366,3200.4,3200.0,0.36625223]
[1768800315240,15.22094366,3200.4,3200.0,0.29173219]
[1768800317021,15.22094366,3200.4,3200.0,0.21721216]
[1768800317442,15.22094366,3200.4,3200.0,0.14269214]
[1768800319345,15.22094366,3200.4,3200.0,0.06817213]
[1768800319544,3.12564829,3200.4,3200.0,12.97688474]
[1768800320344,3.12564829,3200.4,3200.1,0.515]
[1768800320542,3.12564829,3200.4,3200.1,0.12515619]
[1768800320948,12.09629537,3200.4,3199.9,0.002]
[1768800321117,0.51499999,3199.9,3199.6,12.90871261]
[1768800321447,0.51499999,3199.9,3199.7,13.42371261]
[1768800323223,0.51499999,3199.9,3199.7,13.34919262]
[1768800324247,0.51499999,3199.9,3199.8,0.515]
[1768800324449,0.51499999,3199.9,3199.8,10.98353977]
[1768800326091,3.12470705,3200.3,3199.8,10.98353977]
[1768800335236,9.54823767,3200.2,3199.9,0.515]
[1768800335442,9.7781533,3200.0,3199.5,0.00193954]
[1768800335749,9.7781533,3200.0,3199.5,10.47048047]
[1768800336327,9.7781533,3200.0,3199.6,0.515]
[1768800336530,9.7791533,3200.0,3199.6,0.515]
[1768800337873,0.51599999,3200.0,3199.6,10.98354093]
[1768800339868,0.51599999,3200.0,3199.6,10.90902096]
[1768800340378,0.51599999,3200.0,3199.6,10.834501]
[1768800341095,0.001,3200.0,3199.6,10.834501]
[1768800341264,0.001,3200.0,3199.6,10.75998105]
[1768800348164,0.001,3200.0,3199.9,0.002]
[1768800348365,0.001,3200.0,3199.7,8.12771776]
[1768800351189,0.001,3200.0,3199.8,1e-08]
[1768800354399,0.001,3200.0,3199.6,8.12771776]
[1768800354597,0.001,3200.0,3199.9,1e-08]
[1768800357071,0.51499999,3199.9,3199.6,8.12771776]
[1768800357404,0.51499999,3199.9,3199.7,0.515]
[1768800357600,0.51499999,3199.9,3199.7,0.49810017]
[1768800357966,0.51499999,3199.9,3199.5,0.00192345]
[1768800358182,0.51499999,3199.9,3199.6,6.49080248]
[1768800358499,0.51499999,3199.9,3199.7,0.515]
[1768800358666,0.51499999,3199.9,3199.7,0.49810017]
[1768800358862,0.51499999,3199.9,3199.8,0.515]
[1768800359097,0.51499999,3199.9,3199.8,1e-08]
[1768800359279,0.01690009,3199.8,3199.7,5.97580248]
[1768800359864,0.45748361,3199.9,3199.7,6.49080248]
[1768800360267,3.12474261,3200.3,3199.8,5.97580248]
[1768800361600,3.12560942,3200.4,3199.8,5.97580248]
[1768800361799,0.29053092,3200.3,3199.8,5.97580248]
[1768800362003,0.29053092,3200.3,3199.7,0.23732341]
[1768800362004,5.92899135,3200.3,3199.7,0.23732341]
[1768800362208,5.92899135,3200.3,3199.7,6.21312589]
[1768800363525,3.12480469,3200.2,3199.7,6.21312589]
[1768800367117,11.86373506,3200.3,3199.7,6.21312589]
[1768800367618,5.93474371,3200.3,3199.7,6.21312589]
[1768800367782,9.05948742,3200.3,3199.7,6.21312589]
[1768800368106,14.98847877,3200.3,3199.7,6.21312589]
[1768800368312,5.92899135,3200.2,3199.7,6.21312589]
[1768800369824,5.92899135,3200.2,3199.5,0.00192345]
[1768800369985,5.92899135,3200.0,3199.5,0.51500001]
[1768800370590,5.92899135,3200.0,3199.5,1e-08]
[1768800372002,5.92999135,3200.0,3199.5,1e-08]
[1768800372201,0.001,3200.0,3199.5,4.65969445]
[1768800373028,0.001,3200.0,3199.6,0.515]
[1768800373216,0.001,3200.0,3199.6,5.01438874]
[1768800374512,5.92999135,3200.0,3199.6,5.01438874]
[1768800375330,0.001,3200.0,3199.6,5.01438874]
[1768800378808,0.001,3200.0,3199.7,3.77382624]
[1768800382606,0.001,3200.0,3199.8,3.10497716]
[1768800382806,3.12561073,3200.4,3199.8,3.10497716]
[1768800383011,6.64547969,3200.4,3199.8,3.10497716]
[1768800384103,0.001,3200.0,3199.8,3.10497716]
[1768800384336,6.64547969,3200.4,3199.8,3.10497716]
[1768800384541,3.51986896,3200.3,3199.8,3.10497716]
[1768800385031,3.51986896,3200.3,3199.8,3.61997716]
[1768800387605,3.51986896,3200.3,3199.8,3.64018454]
[1768800387804,3.51986896,3200.3,3199.8,6.10792412]
[1768800388698,0.001,3200.4,3199.9,2.34451111]
[1768800389128,3.52086896,3200.4,3199.9,2.34451111]
[1768800389331,3.52086896,3200.4,3199.8,3.64018454]
[1768800389542,3.51986896,3200.3,3199.9,0.515]
[1768800394731,3.51986896,3200.2,3199.9,0.515]
[1768800396136,3.51986896,3200.2,3200.0,0.002]
[1768800397841,6.32986896,3200.3,3200.0,0.002]
[1768800398015,3.51986896,3200.2,3200.0,0.002]
[1768800405650,3.51986896,3200.2,3199.7,3.12524997]
[1768800405837,3.51986896,3200.2,3199.6,3.64235016]
[1768800406039,3.51986896,3200.2,3199.7,0.25353582]
[1768800406235,2.81,3200.3,3199.7,0.25353582]
[1768800406565,2.65423075,3200.2,3199.7,0.25353582]
[1768800407867,2.65423075,3200.2,3199.7,3.37879781]
[1768800408566,2.65423075,3200.2,3199.8,0.515]
[1768800412051,2.65423075,3200.2,3199.6,3.12738205]
[1768800412255,2.65423075,3200.2,3199.7,3.12528288]
[1768800413744,2.65423075,3200.2,3199.8,3.12519327]
[1768800414053,2.65423075,3200.2,3199.7,3.12526023]
[1768800414253,2.65423075,3200.2,3199.6,0.002]
[1768800414254,2.65423075,3200.2,3199.6,3.12739067]
[1768800414575,2.65423075,3200.2,3199.6,6.25278134]
[1768800415080,1.90050313,3201.3,3199.6,6.25278134]
[1768800415241,1.90050313,3201.3,3199.7,0.39880395]
[1768800415449,1.90050313,3201.3,3199.9,7.03461152]
[1768800415647,1.90050313,3201.3,3200.0,0.515]
[1768800416985,1.90050313,3201.3,3200.1,6.24980468]
[1768800417451,3.12373559,3201.3,3200.2,0.515]
[1768800417655,1.90050313,3201.2,3200.2,0.515]
[1768800419382,1.90050313,3201.2,3200.3,3.12470705]
[1768800419584,1.90050313,3201.2,3200.3,3.63970705]
[1768800419747,1.90050313,3201.2,3200.3,6.7644141]
[1768800420088,1.90050313,3200.9,3200.4,0.515]
[1768800420684,0.001,3201.0,3200.4,1.35182507]
[1768800420853,0.001,3201.0,3200.5,0.83682507]
[1768800421552,0.001,3201.0,3200.7,0.78600815]
[1768800423663,0.001,3201.0,3200.8,3.12421894]
[1768800424083,0.001,3201.0,3200.8,3.66462771]
[1768800425489,8.93611465,3201.0,3200.5,0.515]
[1768800425793,1.90050313,3200.9,3200.3,0.515]
[1768800425994,1.90050313,3200.8,3200.3,0.515]
[1768800426488,1.90050313,3200.8,3200.0,6.71233207]
[1768800426692,1.90050313,3200.6,3200.1,0.515]
[1768800427296,0.65324282,3200.9,3200.1,0.515]
[1768800427500,0.001,3201.0,3200.2,1.9357813]
[1768800427689,0.001,3201.0,3199.6,0.002]
[1768800427690,1.90050313,3198.7,3198.4,0.002]
[1768800428002,0.008,3198.2,3197.9,3.12698502]
[1768800428215,5.18137023,3198.6,3197.6,0.002]
[1768800428216,1.90050313,3198.0,3197.6,0.002]
[1768800428374,1.90050313,3198.0,3196.8,0.002]
[1768800428375,1.90050313,3198.0,3197.3,3.12761571]
[1768800428568,1.90050313,3198.0,3197.2,3.12771272]
[1768800428999,1.90050313,3198.0,3197.3,3.12762054]
[1768800429377,1.90050313,3198.0,3197.1,3.12781905]
[1768800429999,1.90050313,3197.4,3196.8,0.002]
[1768800430377,1.90050313,3197.4,3196.7,1.33451008]
[1768800430378,1.90050313,3197.4,3196.7,1.26209361]
[1768800431726,1.90050313,3197.4,3196.8,0.515]
[1768800432318,1.90050313,3197.4,3196.9,3.64303027]
[1768800433137,1.90050313,3197.4,3196.9,3.12803027]